Cogmind - Beta 10.2 *** ADVENTURER MODE // 2021.08.20 @ 23:49:01 Player: UdenTiso Result: Self-destructed Performance ------------- Evolutions (2) 1000 Regions Visited (5) 1000 Robots Destroyed (11) 55 Value Destroyed (232) 232 Prototype IDs (0) 0 Alien Tech Used (0) 0 Bonus (0) 0 TOTAL SCORE: 2287 Bonus ------- None Cogmind --------- Core Integrity 550/550 Matter 260/300 Energy 0/100 System Corruption 0% Temperature Cool (0) Movement Flying (997) Ox12 Location -8/Materials Parts ------- > --- POWER (1) -------- (None) > --- PROPULSION (4) --- Flight Unit Flight Unit > --- UTILITY (4) ------ Cooling System Large Storage Unit Humpback > --- WEAPON (2) ------- Assault Rifle Light Assault Rifle > --- INVENTORY (30) --- Light Ion Engine Light Ion Engine Nuclear Core Fission Core Light Fission Core Aluminum Leg Aluminum Leg Aluminum Leg Aluminum Leg Aluminum Leg Wheel Compact Wheel Flight Unit Heat Sink Small Storage Unit Terrain Scanner Light Armor Plating Medium Laser Assault Rifle Light Assault Rifle Mining Laser Peak State ------------ > --- POWER ------------ (None) > --- PROPULSION ------- Aluminum Leg Aluminum Leg > --- UTILITY ---------- Cooling System Large Storage Unit Humpback > --- WEAPON ----------- Assault Rifle Light Assault Rifle > --- INVENTORY -------- Light Ion Engine Light Ion Engine Nuclear Core Fission Core Light Fission Core Aluminum Leg Aluminum Leg Aluminum Leg Wheel Compact Wheel Flight Unit Flight Unit Flight Unit Heat Sink Small Storage Unit Terrain Scanner Light Armor Plating Medium Laser Assault Rifle Light Assault Rifle Mining Laser [Rating: 12] Favorites ----------- Power Ion Engine Engine Ion Engine Propulsion Aluminum Leg Leg Aluminum Leg Flight Unit Flight Unit Utility Humpback Device Terrain Scanner Storage Humpback Weapon Assault Rifle Energy Gun Medium Laser Ballistic Gun Assault Rifle Special Weapon Mining Laser Build | -11 -10 -10 -10 -9 -8 ------- Run | Scr Mat Min Exi Min Mat Slots Evolved 4 | . . . . . 4 Power . | . . . . . . Propulsion 2 | . . . . . 2 Utility 2 | . . . . . 2 Weapon . | . . . . . . Parts Attached 27 | 6 2 4 4 7 4 Power 2 | 1 . . 1 . . Engine 2 | 1 . . 1 . . Core . | . . . . . . Reactor . | . . . . . . Propulsion 11 | 2 . . 1 6 2 Treads . | . . . . . . Leg 7 | 2 . . 1 4 . Wheel . | . . . . . . Hover . | . . . . . . Flight 4 | . . . . 2 2 Utility 7 | 1 2 1 1 . 2 Device 2 | . 1 . . . 1 Storage 5 | 1 1 1 1 . 1 Processor . | . . . . . . Hackware . | . . . . . . Protection . | . . . . . . Artifact . | . . . . . . Weapon 7 | 2 . 3 1 1 . Energy Gun 3 | 2 . 1 . . . Energy Cannon . | . . . . . . Ballistic Gun 3 | . . 1 1 1 . Ballistic Cannon . | . . . . . . Launcher . | . . . . . . Special Weapon 1 | . . 1 . . . Impact Weapon . | . . . . . . Slashing Weapon . | . . . . . . Piercing Weapon . | . . . . . . Special Melee Weapon . | . . . . . . Unidentified Prototypes . | . . . . . . Parts Lost 3 | . . 2 . 1 . Power 2 | . . 1 . 1 . Propulsion . | . . . . . . Utility . | . . . . . . Weapon 1 | . . 1 . . . Highest Loss Streak 2 | . . 2 . 1 . Average Slot Usage (%) 85 | . 99 89 86 80 62 Engine 10 | . 14 4 13 11 . Leg 24 | . 28 28 28 20 . Flight 2 | . . . . 5 17 Device 3 | . 13 5 . . 9 Storage 16 | . 14 22 15 14 18 Energy Gun 4 | . 28 9 . . . Ballistic Gun 12 | . . 9 14 17 18 Special Weapon 9 | . . 7 14 10 . Naked Turns . | . . . . . . Heaviest Build 101 | 11 24 36 88 88 101 Greatest Support 20 | 20 20 20 20 20 8 Greatest Overweight (x) 29 | . 1 1 4 29 12 Average Overweight (x) 2 | . . 1 3 5 12 Largest Inventory Capacity 30 | 6 10 16 24 24 30 Average Capacity 19 | 5 8 13 23 24 30 Most Carried 23 | 4 8 13 16 23 23 Average Carried 14 | 2 6 11 15 19 21 Final Capacity 30 | 6 10 16 24 24 30 Final Carried 23 | 3 8 13 16 23 21 Class Distribution -------------------- 61% | Hauler-Mutant 38% | Mutant Dominant Class ---------------- Mutant | -10/Materials Mutant | -10/Mines Hauler-Mutant | -10/Exiles Hauler-Mutant | -9/Mines Hauler-Mutant | -8/Materials Resources | -11 -10 -10 -10 -9 -8 ----------- Run | Scr Mat Min Exi Min Mat Matter Collected 545 | 190 18 110 . 227 . Remotely . | . . . . . . Salvage Created 356 | . 53 179 . 124 . Parts 22 | . 6 9 . 7 . Haulers Intercepted . | . . . . . . Recyclers Shooed . | . . . . . . Parts Field Recycled . | . . . . . . Retrieved Matter . | . . . . . . Parts Self-Destructed . | . . . . . . Prevented . | . . . . . . Kills | -11 -10 -10 -10 -9 -8 ------- Run | Scr Mat Min Exi Min Mat Combat Hostiles Destroyed 16 | . 3 4 . 9 . Guns 16 | . 3 4 . 9 . Classes Destroyed 3 | . 1 1 . 1 . Swarmer 7 | . 3 . . 4 . Grunt 4 | . . 4 . . . Assembled 5 | . . . . 5 . Best Kill Streak 4 | . 3 2 . 4 . Combat Bots Only 4 | . 3 2 . 4 . Max Kills in Single Turn 1 | . 1 1 . 1 . Gunslinging . | . . . . . . Exploded . | . . . . . . Melee . | . . . . . . Uniques/NPCs Destroyed . | . . . . . . Combat | -11 -10 -10 -10 -9 -8 -------- Run | Scr Mat Min Exi Min Mat Damage Taken 827 | . 30 291 . 506 . Core 151 | . 6 72 . 73 . Absorbed by Shields . | . . . . . . Core Remaining (%) 69 | 100 . . . 39 . Volleys Fired 55 | . 5 19 . 31 . Largest 2 | . 2 2 . 2 . Hottest 100 | . 100 100 . 40 . Shots Fired 82 | . 10 32 . 40 . Gun 79 | . 10 29 . 40 . Cannon . | . . . . . . Launcher . | . . . . . . Special 3 | . . 3 . . . Kinetic 50 | . . 10 . 40 . Thermal 32 | . 10 22 . . . Explosive . | . . . . . . Electromagnetic . | . . . . . . Robot Hit Streak 22 | . 2 22 . 10 . Robot Miss Streak 1 | . 1 1 . 1 . Penetration Max . | . . . . . . Secondary Targets 2 | . . 1 . 1 . Max Gunslinging Chain 1 | . . 1 . 1 . Shots Hit Robots 62 | . 5 24 . 33 . Core Hits 26 | . 3 9 . 14 . Critical Hits . | . . . . . . Critical Kills . | . . . . . . Critical Parts Destroyed . | . . . . . . Melee Attacks . | . . . . . . Impact . | . . . . . . Slashing . | . . . . . . Piercing . | . . . . . . Sneak Attacks . | . . . . . . Combat Hostiles . | . . . . . . Follow-up Attacks . | . . . . . . Damage Inflicted 739 | . 75 286 . 378 . Guns 708 | . 63 267 . 378 . Cannons . | . . . . . . Explosions . | . . . . . . Melee . | . . . . . . Ramming 31 | . 12 19 . . . Kinetic 443 | . . 65 . 378 . Thermal 265 | . 63 202 . . . Explosive . | . . . . . . Electromagnetic . | . . . . . . Impact . | . . . . . . Slashing . | . . . . . . Piercing . | . . . . . . Highest Corruption 2 | . 2 2 2 2 . Average Corruption 1 | . 1 2 2 2 . Corruption Purged . | . . . . . . Effects 18 | . 1 10 7 . . Message Errors 4 | . . 3 1 . . Heat Flow Errors 2 | . . 1 1 . . Energy Discharges 5 | . . 3 2 . . Data Loss (minor) 5 | . 1 1 3 . . Targeting Errors 2 | . . 2 . . . Overload Shots . | . . . . . . Overflow Damage . | . . . . . . Projectiles . | . . . . . . Explosions . | . . . . . . Melee . | . . . . . . Knockbacks . | . . . . . . Impact . | . . . . . . Kinetic . | . . . . . . Secondary . | . . . . . . Self-Inflicted Damage 6 | . 6 . . . . Shots . | . . . . . . Rammed 1 | . 1 . . . . Targets Rammed 2 | . 1 1 . . . Kicked 1 | . . 1 . . . Crushed . | . . . . . . Highest Temperature 255 | . 177 255 157 10 . Average Temperature 112 | . 92 128 87 7 . Received Heat Transfer 313 | . . 213 . 100 . Effects 1 | . . 1 . . . Energy Bleed 1 | . . 1 . . . Siege Activations . | . . . . . . Robots Corrupted . | . . . . . . Combat Hostiles . | . . . . . . Parts Fried . | . . . . . . Impact Corruptions . | . . . . . . Robots Melted . | . . . . . . Combat Hostiles . | . . . . . . Parts Melted 3 | . . 3 . . . Heat Transferred 777 | . 185 592 . . . Parts Sabotaged . | . . . . . . Parts Stolen . | . . . . . . Parts Stripped . | . . . . . . Power Chain Reactions . | . . . . . . Missiles Intercepted . | . . . . . . Alert | -11 -10 -10 -10 -9 -8 ------- Run | Scr Mat Min Exi Min Mat Peak Influence 120 | . 85 108 . 120 . Initial 28 | . . 28 . . . Average 41 | . 16 39 . 85 . Maximum Alert Level . | . . . . . . Low Security (%) 100 | 100 100 100 . 100 100 Level 1 . | . . . . . . Level 2 . | . . . . . . Level 3 . | . . . . . . Level 4 . | . . . . . . Level 5 . | . . . . . . High Security . | . . . . . . Max Security . | . . . . . . Squads Dispatched . | . . . . . . Investigation . | . . . . . . Extermination . | . . . . . . Reinforcement . | . . . . . . Assault . | . . . . . . Garrison . | . . . . . . Intercept . | . . . . . . Construction Impeded . | . . . . . . Haulers Reinforced . | . . . . . . Stealth | -11 -10 -10 -10 -9 -8 --------- Run | Scr Mat Min Exi Min Mat Distress Signals 1 | . 1 . . . . Communications Jammed . | . . . . . . Distress Signals . | . . . . . . Times Spotted 15 | . 3 4 . 8 . Peak Tracking Total 3 | . 3 3 . 3 . Tactical Retreats 1 | . 1 . . . . Traps | -11 -10 -10 -10 -9 -8 ------- Run | Scr Mat Min Exi Min Mat Traps Triggered 2 | . 2 . . . . Indirectly . | . . . . . . Trap Hack Attempts . | . . . . . . Triggered . | . . . . . . Disarmed . | . . . . . . Reprogrammed . | . . . . . . Reused . | . . . . . . Traps Extracted . | . . . . . . Installed . | . . . . . . Triggered . | . . . . . . Machines | -11 -10 -10 -10 -9 -8 ---------- Run | Scr Mat Min Exi Min Mat Machines Disabled . | . . . . . . Max in Single Turn . | . . . . . . Machines Sabotaged . | . . . . . . Garrisons Compromised . | . . . . . . Overloaded Fab Kills . | . . . . . . Fab Network Shutdowns . | . . . . . . Hacking | -11 -10 -10 -10 -9 -8 --------- Run | Scr Mat Min Exi Min Mat Machines Accessed 5 | . 1 . 4 . . Terminals 1 | . 1 . . . . Fabricators . | . . . . . . Repair Stations . | . . . . . . Recycling Units . | . . . . . . Scanalyzers . | . . . . . . Garrison Access . | . . . . . . Total Hacks 5 | . 1 . 4 . . Successful 5 | . 1 . 4 . . Failed . | . . . . . . Catastrophic . | . . . . . . Database Lockouts . | . . . . . . Manual . | . . . . . . Terminals 1 | . 1 . . . . Fabricators . | . . . . . . Repair Stations . | . . . . . . Recycling Units . | . . . . . . Scanalyzers . | . . . . . . Garrison Access . | . . . . . . Terminal Hacks 5 | . 1 . 4 . . Record 4 | . . . 4 . . Zone Layout 1 | . 1 . . . . Fabricator Hacks . | . . . . . . Repair Station Hacks . | . . . . . . Recycling Unit Hacks . | . . . . . . Scanalyzer . | . . . . . . Garrison Access Hacks . | . . . . . . Unauthorized Hacks . | . . . . . . Terminals . | . . . . . . Fabricators . | . . . . . . Repair Stations . | . . . . . . Recycling Units . | . . . . . . Scanalyzers . | . . . . . . Garrison Access . | . . . . . . Data Cores Recovered . | . . . . . . Used . | . . . . . . Hacking Detections . | . . . . . . Full Trace Events . | . . . . . . Feedback Events . | . . . . . . Feedback Blocked . | . . . . . . Robot Schematics Acquired . | . . . . . . Robots Built . | . . . . . . Matter . | . . . . . . Time . | . . . . . . Total Robot Build Rating . | . . . . . . Part Schematics Acquired . | . . . . . . Parts Built . | . . . . . . Matter . | . . . . . . Time . | . . . . . . Total Part Build Rating . | . . . . . . Parts Repaired . | . . . . . . Time . | . . . . . . Parts Recycled . | . . . . . . Recycled Matter . | . . . . . . Retrieved Matter . | . . . . . . Retrieved Components . | . . . . . . Parts Scanalyzed . | . . . . . . Part Schematics Acquired . | . . . . . . Parts Damaged . | . . . . . . Bothacking | -11 -10 -10 -10 -9 -8 ------------ Run | Scr Mat Min Exi Min Mat Used RIF Installer . | . . . . . . Robots Hacked . | . . . . . . Non-combat . | . . . . . . Combat . | . . . . . . Robot Hacks Applied . | . . . . . . Relay Couplers Released . | . . . . . . Robots Rewired . | . . . . . . Allies Hacked . | . . . . . . Hacks Repelled . | . . . . . . Allies | -11 -10 -10 -10 -9 -8 -------- Run | Scr Mat Min Exi Min Mat Total Allies 1 | . . 1 . . . Largest Group 1 | . . 1 . . . Highest-Rated Group 31 | . . 31 . . . Highest-Rated Ally 31 | . . 31 . . . Total Orders . | . . . . . . Ally Attacks . | . . . . . . Total Damage . | . . . . . . Kills . | . . . . . . Allies Corrupted . | . . . . . . Allies Melted . | . . . . . . Intel | -11 -10 -10 -10 -9 -8 ------- Run | Scr Mat Min Exi Min Mat Robot Analysis Total . | . . . . . . Derelict Logs Recovered 1 | . . 1 . . . Drone Launches . | . . . . . . Drone Recoveries . | . . . . . . Exploration | -11 -10 -10 -10 -9 -8 ------------- Run | Scr Mat Min Exi Min Mat Turns Passed 2893 | 71 259 660 1278 438 187 Spaces Moved 1251 | 54 169 377 549 96 6 Core 12 | 11 . . . 1 . Treads . | . . . . . . Legs 1223 | 43 169 377 549 85 . Wheels . | . . . . . . Hover . | . . . . . . Flight 16 | . . . . 10 6 Fastest Speed 50 | 50 120 150 150 240 997 Average Speed 197 | 105 138 150 225 324 997 Slowest Speed 1720 | 120 150 150 240 1720 997 Overloaded Moves . | . . . . . . Propulsion Burnouts . | . . . . . . Robots Hopped . | . . . . . . Cave-ins Triggered . | . . . . . . Exploration Rate (%) 37 | 3 25 78 91 23 2 Regions Visited 5 Branch Regions 3 Pre-discovered Areas . | . . . . . . Known Exits Taken . | . . . . . . Unknown Exits Taken 5 | 1 1 1 1 1 . Scrap Searched 1 | . . 1 . . . Spaces Dug . | . . . . . . Terrain Destroyed 2 | . . 2 . . . Melee . | . . . . . . Projectile 2 | . . 2 . . . AOE . | . . . . . . Terrain Rammed . | . . . . . . Walls Destroyed . | . . . . . . Machines Disabled . | . . . . . . Actions | -11 -10 -10 -10 -9 -8 --------- Run | Scr Mat Min Exi Min Mat Total 1594 | 68 184 433 588 187 134 Wait 195 | . . 21 15 37 122 Move 1246 | 53 168 376 548 95 6 Hop . | . . . . . . Pick Up 54 | 9 7 9 18 11 . Fast Attach . | . . . . . . Attach 18 | 6 1 1 2 4 4 Detach 4 | . . . . 2 2 Swap 9 | . 1 3 2 3 . Drop 11 | . 1 3 3 4 . Fire 55 | . 5 19 . 31 . Melee . | . . . . . . Ram . | . . . . . . Kick 2 | . 1 1 . . . Crush . | . . . . . . Escape Stasis . | . . . . . . Rewire . | . . . . . . Trap . | . . . . . . Miscellaneous . | . . . . . . Route ------- -11/Scrapyard -10/Materials -10/Mines (discovered 2 exits: [*Mat] / *Exi) -10/Exiles -9/Mines -8/Materials History --------- Turn | Location | Event 9 | -11/Scrapyard | Discovered new exit (range 15) 72 | -11/Scrapyard | Entered Materials 148 | -10/Materials | Discovered new exit (range 15) 311 | -10/Materials | Build established: Mutant 331 | -10/Materials | Entered Mines 412 | -10/Mines | Found a hidden stash of uninstalled traps 458 | -10/Mines | Deemed a non-threat by the Exiles lab entrance 458 | -10/Mines | Discovered new exit (range 5) 616 | -10/Mines | Received a Mining Laser from a helpful Derelict 695 | -10/Mines | Discovered new exit (range 15) 991 | -10/Mines | Entered Exiles 991 | -10/Exiles | Found Exiles lab abandoned 1423 | -10/Exiles | Build established: Hauler-Mutant 1711 | -10/Exiles | Discovered new exit (range 11) 2269 | -10/Exiles | Entered Mines 2288 | -9/Mines | Assembled infested the area 2594 | -9/Mines | Discovered new exit (range 13) 2604 | -9/Mines | Core integrity fell below 50% 2707 | -9/Mines | Entered Materials 2707 | -8/Materials | Evolved 4 slots: Propulsion x2, Utility x2 2894 | -8/Materials | Self-destructed Last Messages --------------- 02606_ Acquired 4 matter. 02611_ as-23893 destroyed. 02611_ Switching to secondary target: as-70597. 02612_ Acquired 4 matter. 02614_ Acquired 2 matter. 02615_ Ion Engine destroyed. 02616_ R-06 Scavenger collects Wheel. 02634_ as-59980 destroyed. 02640_ as-70597 destroyed. 02641_ Acquired 16 matter. 02652_ R-06 Scavenger collects Wheel. 02655_ R-06 Scavenger collects Welding Torch. 02659_ R-06 Scavenger collects Terrain Scanner. 02665_ K-01 Serf collects debris. 02691_ K-01 Serf cleans the Matter Pump. 02697_ K-01 Serf collects debris. [Achievement: I Survived The Infestation] PARAMETERS=PROPULSION_2,UTILITY_2 LOCATION=UNKNOWN GOAL=ESCAPE Map ----- +----------------------------------------------------+ | | | | | | | | | | | | | | | | | ?????????????????????????????????? | | ?????????????????????????????????? | | ?????????????????????????????????? | | ?????????????????????????????????? | | ?????????????????????????????????? | | ?????????????????????????????????? | | ?????????????????????????????????? | | ?????????????????????????????????? | | ?????????????????????????????????? | | ?????????????????????????????????? | | ?????????????????????????????????? | | ?????????????????????????????????? | | ?????????????????????????????????? | | ????????????????########?#####???? | | ???????????????? ! ?# #???? | | ????????????????? # #???? | | ??????????????????"" """u# #???? | | ??????????????????"" """ @ #???? | | ??????????????????"" """ # #???? | | ????????????????? # #???? | | ???????????????? ?# #???? | | ???????????????? ?# #???? | | ????????????????#######??# #???? | | ?????????????????????????# #???? | | ?????????????????????????# #???? | | ?????????????????????????# #???? | | ?????????????????????????+ #???? | | ?????????????????????????# #???? | | ?????????????????????????### #???? | | ???????????????????????????? #???? | | ???????????????????????????? #???? | | ???????????????????????????? ????? | | ?????????????????????????????????? | | ?????????????????????????????????? | | ?????????????????????????????????? | | ?????????????????????????????????? | | ?????????????????????????????????? | | ?????????????????????????????????? | | ?????????????????????????????????? | | ?????????????????????????????????? | | ?????????????????????????????????? | | ?????????????????????????????????? | +----------------------------------------------------+ Best States ------------- Heat Dissipation 53 Energy Generation 10 Energy Capacity 250 Matter Stores 300 Matter Capacity 300 Sight Range 16 Terrain Scan Range 14 Terrain Scan Density 10 Resistance: KI 20 Resistance: TH 20 Resistance: EX 20 Resistance: EM 20 Resistance: I 20 Resistance: S 20 Resistance: P 20 Evasion (%) 50 Offensive Hacking 10 Item Schematics ----------------- None Robot Schematics ------------------ None Fabricated ------------ Nothing Alien Tech Used ----------------- None Achievements -------------- I Survived The Infestation Challenges ------------ None Game ------ Seed GhostHackingRay Manual? 0 Play Time 00:24:24 Cumulative 4.0 hours Start 2021.08.20 @ 23:08:01 End 2021.08.20 @ 23:49:01 Sessions 1 Manual Loads 0 Difficulty Adventurer Special Mode None Game No. 7 Rogue 0 Adventurer 7 Explorer 0 Win Type - Total 0 Types 0/0/0/0/0/0/0/0/0 Lore% 14 Gallery% 8 Achievement% 10 Wizard Run 0 Options --------- ASCII 0 Keyboard 0 Movement Mouse Keybinds 0 Fullscreen 1 Font 18/X11 Map View 76x50 Tactical HUD 1 Map Filters NONE Filters NONE Steam 1 RUN: 04e7f424-5e53-4e5b-b8d9-8704181a4746